bitfinex-derivatives/quotes_BTCF0:USTF0_20250320
["timestamp","ask_amount","ask_price","bid_price","bid_amount"]
[1742430350997,0.0921188,86826.0,86825.0,1.592119]
[1742430351381,0.2503188,86826.0,86825.0,1.5]
[1742430351592,0.2503188,86826.0,86825.0,1.592119]
[1742430351978,0.2503188,86826.0,86825.0,1.5]
[1742430352580,0.4108188,86826.0,86825.0,1.5]
[1742430352791,0.4108188,86826.0,86806.0,0.3608]
[1742430352792,0.0921254,86819.0,86818.0,0.1544]
[1742430353096,0.0921265,86818.0,86815.0,0.3608]
[1742430353296,0.4130265,86818.0,86817.0,1.50017277]
[1742430353486,0.4110265,86818.0,86817.0,1.50017277]
[1742430354194,0.4110265,86818.0,86817.0,1.50417277]
[1742430354585,0.4090265,86818.0,86817.0,1.50417277]
[1742430354783,0.4090265,86818.0,86817.0,0.00417277]
[1742430355191,0.4090265,86818.0,86817.0,0.00617277]
[1742430355387,0.5344665,86818.0,86817.0,0.00617277]
[1742430355786,0.5344665,86818.0,86817.0,0.00217277]
[1742430355787,0.5354665,86818.0,86817.0,0.00217277]
[1742430356186,0.4100265,86818.0,86817.0,0.00217277]
[1742430356489,0.5393465,86818.0,86817.0,1.59430027]
[1742430357097,0.4140265,86818.0,86817.0,1.59430027]
[1742430357397,0.28526,86818.0,86817.0,1.95510027]
[1742430357598,0.3773865,86818.0,86817.0,1.86297277]
[1742430357788,0.5403865,86818.0,86817.0,1.86297277]
[1742430358092,0.5432665,86818.0,86817.0,1.86097277]
[1742430358285,0.28814,86818.0,86817.0,1.95310027]
[1742430358690,0.28614,86818.0,86817.0,1.95310027]
[1742430358897,0.1611,86818.0,86817.0,2.11490027]
[1742430359284,0.1631,86818.0,86817.0,2.11490027]
[1742430359488,0.004,86818.0,86817.0,2.11490027]
[1742430359689,0.003,86818.0,86817.0,2.11490027]
[1742430359889,0.0931265,86818.0,86817.0,1.66197277]
[1742430360094,0.0931265,86818.0,86817.0,2.11490027]
[1742430361798,0.0931265,86818.0,86817.0,2.02277277]
[1742430362104,0.0921265,86818.0,86817.0,2.11490027]
[1742430362403,0.0961265,86818.0,86817.0,2.11490027]
[1742430362901,0.0961265,86818.0,86817.0,1.50017277]
[1742430363298,0.0961265,86818.0,86817.0,0.00017277]
[1742430364001,0.0961265,86818.0,86817.0,0.09230027]
[1742430365399,0.004,86818.0,86817.0,0.09230027]
[1742430365699,0.2213265,86818.0,86817.0,0.09230027]
[1742430365905,0.0961265,86818.0,86817.0,0.09230027]
[1742430366099,0.0961265,86818.0,86817.0,1.59230027]
[1742430366293,0.2550265,86818.0,86817.0,1.59230027]
[1742430366695,0.2530265,86818.0,86817.0,1.59330027]
[1742430367787,0.2520265,86818.0,86817.0,1.59330027]
[1742430368398,0.2510265,86818.0,86817.0,1.59330027]
[1742430368594,0.2530265,86818.0,86817.0,1.59330027]
[1742430369099,0.2540265,86818.0,86817.0,1.59230027]
[1742430369795,0.2530265,86818.0,86817.0,1.59230027]
[1742430369994,0.1609,86818.0,86817.0,1.59230027]
[1742430370197,0.002,86818.0,86817.0,1.59230027]
[1742430370399,0.19165638,86829.0,86825.0,0.092119]
[1742430370400,0.27127099,86826.0,86825.0,0.092119]
[1742430370598,0.27127099,86826.0,86825.0,0.462919]
[1742430370906,0.12704705,86829.0,86828.0,0.0921159]
[1742430371210,0.1571,86839.0,86833.0,0.0921106]
[1742430371602,0.01189461,86836.0,86833.0,1.5921106]
[1742430372001,0.01189461,86836.0,86833.0,1.6021106]
[1742430372310,0.00217277,86834.0,86833.0,1.6021106]
[1742430372504,0.00317277,86834.0,86833.0,1.6021106]
[1742430372700,0.00317277,86834.0,86833.0,1.61387369]
[1742430373006,0.0920946,86848.0,86847.0,0.1381431]
[1742430373305,0.0920946,86848.0,86847.0,0.4989431]
[1742430373892,0.10364002,86848.0,86847.0,0.4989431]
[1742430374108,0.01154542,86848.0,86847.0,0.4989431]
[1742430374307,0.1638,86849.0,86848.0,0.0920946]
[1742430374705,0.1638,86849.0,86848.0,0.4080946]
[1742430375009,0.26770282,86849.0,86848.0,0.4080946]
[1742430375308,0.01180922,86849.0,86848.0,0.4080946]
[1742430375608,0.1516,86852.0,86851.0,0.0920915]
[1742430375999,0.1635116,86852.0,86851.0,1.5920915]
[1742430377310,0.255602,86852.0,86851.0,1.5920915]
[1742430377501,0.255602,86852.0,86851.0,0.0920915]
[1742430378002,0.261602,86852.0,86851.0,0.0920915]
[1742430379699,0.0920946,86848.0,86847.0,0.00064]
[1742430379905,0.0921265,86818.0,86817.0,0.4529262]
[1742430380209,0.0921225,86822.0,86821.0,0.1381824]
[1742430380507,0.0921225,86822.0,86821.0,0.2994824]
[1742430380709,0.3342,86823.0,86821.0,0.2994824]
[1742430380710,0.3342,86823.0,86822.0,0.0921222]
[1742430381010,0.12396,86828.0,86827.0,0.0921169]
[1742430381207,0.12396,86828.0,86827.0,0.4529169]
[1742430381405,0.00017277,86831.0,86830.0,0.0921137]
[1742430382006,0.22586388,86841.0,86840.0,0.0921031]
[1742430382205,0.22586388,86841.0,86840.0,0.4529031]
[1742430382409,0.17277181,86841.0,86840.0,0.6142031]
[1742430382907,0.01147181,86841.0,86840.0,0.6142031]
[1742430383216,0.1521,86849.0,86840.0,0.6142031]
[1742430383217,0.0920993,86844.0,86843.0,0.0920999]
[1742430383396,0.0920993,86844.0,86843.0,0.4528999]
[1742430383804,0.0460484,86846.0,86843.0,0.0920999]
[1742430384003,0.05760686,86846.0,86845.0,0.0920978]
[1742430384403,0.092101,86842.0,86841.0,0.4989491]
[1742430384713,0.0921074,86837.0,86836.0,0.0921066]
[1742430385108,0.12372,86840.0,86839.0,0.0921031]
[1742430385314,0.0460441,86854.0,86848.0,0.0920946]
[1742430385510,0.00017277,86849.0,86848.0,0.4528946]
[1742430385810,0.01177196,86849.0,86848.0,0.3608]
[1742430386002,0.0921021,86841.0,86840.0,0.3120511]
[1742430386198,0.0951031,86840.0,86839.0,0.3608]
[1742430386403,0.2610031,86840.0,86839.0,0.3608]
[1742430386610,0.2610031,86840.0,86839.0,1.8608]
[1742430387309,0.2610031,86840.0,86839.0,0.3608]
[1742430387814,0.2580031,86840.0,86839.0,0.3608]
[1742430388512,0.2580031,86840.0,86839.0,0.4529042]
[1742430388717,0.2610031,86840.0,86839.0,0.4529042]
[1742430389313,0.0921042,86839.0,86838.0,0.6310045]
[1742430389513,0.2156242,86839.0,86838.0,0.6310045]
[1742430390904,0.2186242,86839.0,86838.0,0.6310045]
[1742430391412,0.12652,86839.0,86838.0,0.6310045]
[1742430391609,0.2186242,86839.0,86838.0,0.6310045]
[1742430392013,0.3880242,86839.0,86838.0,0.6310045]
[1742430394018,0.3880242,86839.0,86838.0,0.5389]
[1742430394218,0.3880242,86839.0,86838.0,0.3608]
[1742430394417,0.3880242,86839.0,86838.0,0.4529052]
[1742430394821,0.3880242,86839.0,86838.0,0.6243052]
[1742430395117,0.3875842,86839.0,86838.0,0.6243052]
[1742430395618,0.5590842,86839.0,86838.0,0.6243052]
[1742430397013,0.3439,86839.0,86838.0,0.6243052]
[1742430397213,0.1724,86839.0,86838.0,0.6343052]
[1742430397420,0.1715,86847.0,86846.0,0.0920968]
[1742430397619,0.2635965,86847.0,86846.0,0.4528968]
[1742430398009,0.2635965,86847.0,86846.0,0.7792968]
[1742430399416,0.1715,86847.0,86846.0,0.7792968]
[1742430399618,0.00017277,86849.0,86848.0,0.0920946]
[1742430400121,0.00017277,86849.0,86848.0,0.10348315]
[1742430400314,0.0460462,86851.0,86849.0,0.0460467]
[1742430400514,0.1381387,86851.0,86850.0,0.431792]
[1742430400818,0.1381387,86851.0,86850.0,1.971792]
[1742430401319,0.3108387,86851.0,86850.0,1.971792]
[1742430401916,0.3118387,86851.0,86850.0,1.971792]
[1742430402820,0.3118387,86851.0,86850.0,2.332592]
[1742430403414,0.3118387,86851.0,86850.0,1.9717925]
[1742430403908,0.3118387,86851.0,86850.0,2.3325925]
[1742430404109,0.4876387,86851.0,86850.0,0.04]
[1742430404311,0.092101,86843.0,86842.0,0.184195]
[1742430404508,0.092101,86843.0,86842.0,0.369895]
[1742430404908,0.092101,86843.0,86842.0,0.730695]
[1742430405111,0.1737,86851.0,86850.0,0.0920925]
[1742430405310,0.001,86851.0,86850.0,0.0920925]
[1742430405510,0.0930915,86851.0,86850.0,0.0920925]
[1742430405711,0.0930915,86851.0,86850.0,0.4379925]
[1742430405927,0.0930915,86851.0,86850.0,0.7987925]
[1742430406722,0.0930915,86851.0,86850.0,2.2987925]
[1742430407423,0.0920915,86851.0,86850.0,2.2987925]
[1742430408221,0.0960915,86851.0,86850.0,2.2987925]
[1742430408617,0.0960915,86851.0,86850.0,1.9379925]
[1742430408822,0.0960915,86851.0,86850.0,2.2987925]
[1742430409023,0.0960915,86851.0,86850.0,1.9379925]
[1742430409227,0.0960915,86851.0,86850.0,2.2987925]
[1742430409723,0.2698915,86851.0,86850.0,1.5]
[1742430410024,0.0920968,86847.0,86846.0,0.0920967]
[1742430410320,0.0920968,86847.0,86846.0,1.7646967]
[1742430410827,0.0920968,86847.0,86846.0,1.9417967]
[1742430411326,0.0960968,86847.0,86846.0,1.9417967]
[1742430412024,0.0960968,86847.0,86846.0,1.8497]
[1742430412226,0.2696968,86847.0,86846.0,1.8497]
[1742430412530,0.4453968,86847.0,86846.0,1.8497]
[1742430412828,0.2696957,86847.0,86846.0,1.9417968]
[1742430413030,0.004,86847.0,86846.0,1.9417968]
[1742430413228,0.0960957,86847.0,86846.0,1.9417968]
[1742430413933,0.2181757,86847.0,86846.0,1.5]
[1742430414229,0.2181757,86847.0,86841.0,0.3608]
[1742430414230,0.092101,86842.0,86841.0,0.3608]
[1742430414733,0.004,86847.0,86846.0,0.0920968]
[1742430415120,0.1733,86857.0,86856.0,0.0920862]
[1742430415324,0.2653851,86857.0,86856.0,0.4528862]
[1742430415527,0.2653851,86857.0,86856.0,0.0920862]
[1742430415732,0.27690613,86857.0,86856.0,1.9528862]
[1742430416119,0.27690613,86857.0,86856.0,1.5920862]
[1742430416322,0.44990613,86857.0,86856.0,1.5920862]
[1742430416523,0.44990613,86857.0,86856.0,1.7753862]
[1742430416924,0.45390613,86857.0,86856.0,1.7753862]
[1742430417428,0.45390613,86857.0,86856.0,1.9466862]
[1742430417931,0.0460457,86852.0,86849.0,0.0460463]
[1742430418139,0.0920957,86847.0,86846.0,0.4528967]
[1742430418634,0.48042,86851.0,86846.0,0.4528967]
[1742430418635,0.5725123,86851.0,86850.0,0.0920925]
[1742430419636,0.5725123,86851.0,86850.0,0.2633925]
[1742430419836,0.0920925,86850.0,86849.0,0.1833]
[1742430420034,0.0920957,86847.0,86846.0,1.8614]
[1742430420236,0.0920957,86847.0,86843.0,0.0920999]
[1742430420237,0.0920999,86844.0,86843.0,0.0920999]
[1742430420629,0.4304999,86844.0,86843.0,0.0920999]
[1742430421122,0.01183302,86851.0,86844.0,0.0460489]
[1742430421321,0.01183302,86851.0,86847.0,0.0920957]
[1742430421322,0.3068459,86848.0,86847.0,0.0920957]
[1742430421525,0.2147481,86848.0,86847.0,0.0920957]
[1742430422033,0.2723851,86857.0,86856.0,0.0920862]
[1742430422236,0.35,86857.0,86856.0,0.0920862]
[1742430422548,0.45376571,86857.0,86856.0,0.0920862]
[1742430422731,0.45376571,86857.0,86856.0,1.5920862]
[1742430423236,0.45376571,86857.0,86856.0,1.5]
[1742430423430,0.63416571,86857.0,86856.0,1.5]
[1742430423834,0.63416571,86857.0,86856.0,1.5920862]
[1742430425133,0.63416571,86857.0,86856.0,2.3093862]
[1742430425533,0.00017277,86859.0,86858.0,0.092084]
[1742430425735,0.00017277,86859.0,86858.0,0.452884]
[1742430426038,0.10598931,86872.0,86858.0,0.452884]
[1742430426039,0.12152,86891.0,86875.0,0.092066]
[1742430426244,0.12152,86891.0,86878.0,0.0920628]
[1742430426245,0.1380955,86879.0,86878.0,0.0920628]
[1742430426448,0.0920618,86879.0,86878.0,0.7222]
[1742430426743,0.10363195,86879.0,86878.0,1.8614]
[1742430427040,0.10363195,86879.0,86878.0,1.5]
[1742430427231,0.10363195,86879.0,86870.0,0.00017266]
[1742430427232,0.46083195,86879.0,86870.0,0.00017266]
[1742430427436,0.0920703,86871.0,86870.0,0.00017266]
[1742430427632,0.2135903,86871.0,86870.0,0.00017266]
[1742430428135,0.2135903,86871.0,86854.0,0.407444]
[1742430428136,0.63232,86871.0,86839.0,0.0921033]
[1742430428337,0.63232,86871.0,86844.0,0.0920945]
[1742430428338,0.0920989,86845.0,86844.0,0.0920945]
[1742430428536,0.0460471,86850.0,86849.0,0.046046]
[1742430428847,0.1676071,86850.0,86849.0,0.046046]
[1742430429343,0.0460471,86850.0,86849.0,0.398646]
[1742430429640,0.06481393,86860.0,86856.0,0.0920851]
[1742430429833,0.24041393,86860.0,86857.0,0.7977851]
[1742430430234,0.24041393,86860.0,86857.0,2.2057]
[1742430430235,0.09225666,86858.0,86857.0,2.2057]
[1742430430440,0.0920936,86849.0,86848.0,0.3608]
[1742430430640,0.0920968,86846.0,86845.0,0.1739]
[1742430430836,0.0920968,86846.0,86845.0,0.5347]
[1742430431037,0.0920968,86846.0,86845.0,0.1739]
[1742430431436,0.092101,86842.0,86841.0,0.36097266]
[1742430432336,0.263901,86842.0,86841.0,0.36097266]
[1742430432933,0.475421,86842.0,86841.0,6e-08]
[1742430433135,0.0921328,86812.0,86811.0,0.3608]
[1742430433742,0.0921328,86812.0,86811.0,0.4529339]
[1742430434335,0.0921328,86812.0,86811.0,0.4569339]
[1742430434539,0.2639328,86812.0,86811.0,0.4569339]
[1742430434744,0.2639328,86812.0,86811.0,0.4629339]
[1742430434939,0.2639328,86812.0,86811.0,2.1357339]
[1742430435542,0.2639328,86812.0,86811.0,2.0436]
[1742430436845,0.2639328,86812.0,86811.0,1.6828]
[1742430437052,0.2639328,86812.0,86811.0,2.0436]
[1742430437351,0.2639328,86812.0,86811.0,2.1357339]
[1742430437853,0.3854928,86812.0,86811.0,2.3140339]
[1742430439353,0.04623506,86820.0,86814.0,0.0460649]
[1742430439554,0.2711281,86817.0,86816.0,0.0921286]
[1742430439748,0.3926881,86817.0,86816.0,0.0921286]
[1742430439953,0.2711281,86817.0,86816.0,0.4623286]
[1742430440154,0.2711281,86817.0,86816.0,1.9623286]
[1742430441756,0.2711281,86817.0,86816.0,1.9653286]
[1742430442051,0.12156,86818.0,86817.0,0.0921275]
[1742430442254,0.00017276,86820.0,86819.0,0.0921254]
[1742430442457,0.12173276,86820.0,86819.0,0.4529254]
[1742430442951,0.00017276,86820.0,86819.0,0.4529254]
[1742430443455,0.12156,86828.0,86827.0,0.0921169]
[1742430443757,0.0921095,86834.0,86833.0,0.0921095]
[1742430444553,0.0921095,86834.0,86833.0,1.5921095]
[1742430445347,0.1039386,86834.0,86833.0,1.5921095]
[1742430445749,0.87496,86835.0,86834.0,0.0921095]
[1742430445952,0.9664284,86835.0,86834.0,0.4432095]
[1742430446560,0.0921084,86835.0,86834.0,0.4892638]
[1742430447048,0.0931084,86835.0,86834.0,0.4892638]
[1742430447450,0.0931084,86835.0,86834.0,0.5353178]
[1742430451156,0.001,86835.0,86834.0,0.5353178]
[1742430451351,6e-08,86842.0,86841.0,0.0921021]
[1742430451558,6e-08,86842.0,86841.0,0.4629021]
[1742430451762,0.09210106,86842.0,86841.0,0.4629021]
[1742430451961,0.09210106,86842.0,86841.0,2.3255021]
[1742430452262,0.09210106,86842.0,86841.0,1.8808]
[1742430452467,0.09210106,86842.0,86841.0,0.3708]
[1742430452669,0.09210106,86842.0,86841.0,0.3608]
[1742430455174,0.09210106,86842.0,86841.0,0.4529021]
[1742430455374,0.09210106,86842.0,86841.0,0.8034021]
[1742430455676,0.28010106,86842.0,86841.0,0.8034021]
[1742430456768,6e-08,86842.0,86841.0,2.3034021]
[1742430456962,6e-08,86842.0,86841.0,2.3134021]
[1742430458473,0.09210106,86842.0,86841.0,2.3134021]
[1742430459177,6e-08,86842.0,86841.0,2.3134021]
[1742430459576,0.09210106,86842.0,86841.0,2.3134021]
[1742430460377,6e-08,86842.0,86841.0,2.3134021]
[1742430460773,6e-08,86842.0,86841.0,2.4349221]
[1742430460965,6e-08,86842.0,86841.0,2.4449221]
[1742430461470,6e-08,86842.0,86841.0,2.84642469]
[1742430462064,6e-08,86842.0,86841.0,3.26022469]
[1742430462464,6e-08,86842.0,86841.0,2.8587221]
[1742430465669,6e-08,86842.0,86841.0,2.4449221]
[1742430467079,6e-08,86842.0,86841.0,2.3234021]
[1742430468171,0.09210106,86842.0,86841.0,2.2213]
[1742430468374,0.09210106,86842.0,86841.0,2.2113]
[1742430468681,0.09210106,86842.0,86841.0,2.3034021]
[1742430469087,6e-08,86842.0,86841.0,2.3034021]
[1742430469382,0.09210106,86842.0,86841.0,2.3034021]
[1742430469974,0.45070106,86842.0,86841.0,2.3034021]
[1742430470278,0.35860006,86842.0,86841.0,2.3034021]
[1742430470579,0.17590006,86842.0,86841.0,2.3034021]
[1742430470778,6e-08,86842.0,86841.0,2.3034021]
[1742430471170,6e-08,86842.0,86841.0,2.3134021]
[1742430472283,6e-08,86842.0,86841.0,2.3534021]
[1742430472484,6e-08,86842.0,86841.0,2.6234021]
[1742430472977,6e-08,86842.0,86841.0,2.3634021]
[1742430473179,6e-08,86842.0,86841.0,2.37854619]
[1742430473572,6e-08,86842.0,86841.0,2.3634021]
[1742430475178,6e-08,86842.0,86841.0,2.37849742]
[1742430475381,0.09210106,86842.0,86841.0,2.50001742]
[1742430475682,0.09210106,86842.0,86841.0,2.45001742]
[1742430476272,0.44860106,86842.0,86841.0,2.4349221]
[1742430477781,0.35650006,86842.0,86841.0,2.4249221]
[1742430477981,0.44861026,86842.0,86841.0,2.4249221]
[1742430478371,0.44861026,86842.0,86841.0,2.1300113]
[1742430479185,0.44861026,86842.0,86841.0,1.9529113]
[1742430480584,0.44861026,86842.0,86841.0,0.4529113]
[1742430480978,0.44861026,86842.0,86841.0,0.3608]
[1742430481174,0.44861026,86842.0,86837.0,1.50068]
[1742430481175,0.0921145,86838.0,86837.0,1.50068]
[1742430481381,0.0921145,86838.0,86837.0,1.5921155]
[1742430481579,0.10388278,86838.0,86837.0,1.5921155]
[1742430481981,0.57620278,86838.0,86837.0,0.0921155]
[1742430483886,0.3508,86838.0,86837.0,0.0921155]
[1742430484777,0.3508,86838.0,86837.0,0.4462155]
[1742430484977,0.3508,86838.0,86837.0,0.8070155]
[1742430485182,0.1709,86838.0,86837.0,0.8070155]
[1742430485383,0.1709,86838.0,86837.0,0.8170155]
[1742430485582,0.1709,86838.0,86837.0,2.3170155]
[1742430485984,0.1814,86841.0,86840.0,0.0921123]
[1742430487075,0.0921134,86839.0,86838.0,0.0460567]
[1742430487679,0.2677134,86839.0,86838.0,0.0460567]
[1742430491084,0.27930684,86839.0,86838.0,0.0460567]
[1742430492281,0.2677134,86839.0,86838.0,0.0460567]
[1742430492484,0.1756,86839.0,86838.0,0.2187567]
[1742430492998,0.1756,86839.0,86838.0,0.3995567]
[1742430493387,0.1779,86840.0,86839.0,0.0921134]
[1742430493590,6e-08,86842.0,86841.0,0.0921113]
[1742430493981,6e-08,86842.0,86841.0,0.4529113]
[1742430494397,6e-08,86842.0,86841.0,0.4629113]
[1742430494896,6e-08,86842.0,86841.0,1.9629113]
[1742430497394,0.09211026,86842.0,86841.0,1.9629113]
[1742430497605,0.09211026,86842.0,86841.0,0.4529113]
[1742430498200,0.09211026,86842.0,86841.0,1.9529113]
[1742430499291,0.10391656,86842.0,86841.0,2.1341113]
[1742430499495,0.10391656,86842.0,86841.0,1.7733113]
[1742430499997,0.09211026,86842.0,86841.0,1.7733113]
[1742430500695,6e-08,86842.0,86841.0,2.1341113]
[1742430501306,0.45241026,86842.0,86841.0,2.1341113]
[1742430501600,0.62641026,86842.0,86841.0,1.9529113]
[1742430501898,0.0921166,86836.0,86835.0,0.2633166]
[1742430502299,0.0921166,86836.0,86835.0,1.7633166]
[1742430502600,0.3537,86837.0,86836.0,0.0921166]
[1742430502797,0.2687155,86837.0,86836.0,0.2633166]
[1742430502996,0.2687155,86837.0,86836.0,0.4366166]
[1742430503397,0.2687155,86837.0,86836.0,1.9366166]
[1742430504197,0.2687155,86837.0,86836.0,1.5]
[1742430504397,0.2687155,86837.0,86836.0,1.5921166]
[1742430504792,0.2687155,86837.0,86834.0,0.13]
[1742430504793,0.0921176,86835.0,86834.0,0.13]
[1742430504995,0.2135976,86835.0,86834.0,0.13]
[1742430505698,0.2135976,86835.0,86834.0,0.2221187]
[1742430506102,0.2135976,86835.0,86834.0,0.13]
[1742430507703,0.0921251,86828.0,86827.0,0.3614]
[1742430507902,0.0921389,86815.0,86812.0,0.0921417]
[1742430508092,0.092141,86813.0,86812.0,0.1842827]
[1742430508293,0.092141,86813.0,86812.0,1.6842827]
[1742430508702,0.1861,86813.0,86797.0,0.0460787]
[1742430509006,0.4529537,86801.0,86800.0,0.1921548]
[1742430509303,0.4519537,86801.0,86800.0,1.6921548]
[1742430509901,0.6380537,86801.0,86800.0,1.6951548]
[1742430510093,0.64992174,86801.0,86800.0,1.6951548]
[1742430510501,0.64992174,86801.0,86800.0,1.6941548]
[1742430510906,0.64992174,86801.0,86800.0,1.6981548]
[1742430512000,0.65869795,86801.0,86800.0,1.6981548]
[1742430513399,0.65869795,86801.0,86800.0,1.606]
[1742430514110,0.65869795,86801.0,86800.0,1.6981548]
[1742430514303,0.84389795,86801.0,86800.0,1.6981548]
[1742430514908,0.96537795,86801.0,86800.0,1.6981548]
[1742430515906,0.96537795,86801.0,86800.0,1.8836548]
[1742430516113,0.84389795,86801.0,86800.0,1.8836548]
[1742430516305,0.87422425,86801.0,86800.0,1.8836548]
[1742430516505,0.96637795,86801.0,86800.0,1.8836548]
[1742430517604,0.95760174,86801.0,86800.0,1.8836548]
[1742430518821,0.37266804,86801.0,86800.0,1.8836548]
[1742430519119,0.3608,86801.0,86800.0,1.89531027]
[1742430519315,0.3608,86801.0,86800.0,1.8836548]
[1742430519920,0.3608,86801.0,86800.0,2.0593548]
[1742430520918,0.12148,86816.0,86801.0,0.0460767]
[1742430521214,0.12148,86816.0,86812.0,0.092142]
[1742430521215,0.264641,86813.0,86812.0,0.092142]
[1742430521612,0.1725,86813.0,86812.0,0.092142]
[1742430522017,0.343,86813.0,86812.0,0.092142]
[1742430522218,0.44688715,86813.0,86812.0,0.092142]
[1742430523319,0.35474615,86813.0,86812.0,0.092142]
[1742430523530,0.0460711,86812.0,86801.0,0.005]
[1742430523830,0.4529527,86802.0,86801.0,0.0921537]
[1742430524221,0.6291527,86802.0,86801.0,0.0921537]
[1742430524516,0.0921537,86801.0,86800.0,0.1]
[1742430524826,0.0911537,86801.0,86800.0,0.1]
[1742430525025,0.4531537,86801.0,86800.0,0.1]
[1742430525419,0.8139537,86801.0,86800.0,0.1]
[1742430525718,0.8129537,86801.0,86800.0,0.1]
[1742430525920,0.8129537,86801.0,86778.0,0.5846]
[1742430525921,0.0921771,86779.0,86778.0,0.5846]
[1742430526115,0.0921771,86779.0,86778.0,0.1708]
[1742430526314,0.4529771,86779.0,86778.0,0.1708]
[1742430526920,0.8183771,86779.0,86778.0,0.1708]
[1742430527821,0.6322771,86779.0,86778.0,0.2629782]
[1742430528021,0.6312771,86779.0,86778.0,0.2629782]
[1742430528223,0.36097276,86787.0,86786.0,0.0921697]
[1742430528414,0.45314136,86787.0,86786.0,0.0921697]
[1742430528819,0.0921718,86785.0,86784.0,0.0921713]
[1742430529227,0.0460869,86783.0,86780.0,0.0460876]
[1742430529528,0.0460869,86783.0,86782.0,0.0921647]
[1742430529827,0.0460869,86783.0,86782.0,1.5921647]
[1742430530021,0.00317276,86787.0,86786.0,0.0921604]
[1742430530215,0.00317276,86787.0,86786.0,0.2236404]
[1742430530417,0.00617276,86787.0,86786.0,0.2236404]
[1742430530716,0.1853,86804.0,86786.0,0.2236404]
[1742430530717,0.0921442,86802.0,86801.0,0.0460717]
[1742430530923,0.0921442,86802.0,86801.0,0.2205717]
[1742430531120,0.10394043,86802.0,86801.0,0.2205717]
[1742430531625,0.3608,86825.0,86809.0,0.0460676]
[1742430531816,0.37217866,86825.0,86824.0,0.0921201]
[1742430532012,0.46430236,86825.0,86824.0,0.0921201]
[1742430532315,0.0921212,86823.0,86820.0,0.12148]
[1742430532622,0.0921275,86817.0,86816.0,0.00017276]
[1742430532812,0.4529275,86817.0,86816.0,0.09230136]
[1742430533225,0.4529275,86817.0,86816.0,0.00017276]
[1742430533420,0.4529275,86817.0,86816.0,0.09230136]
[1742430534131,0.4549275,86817.0,86816.0,0.09230136]
[1742430534820,0.4559275,86817.0,86816.0,0.09230136]
[1742430535021,0.4559275,86817.0,86816.0,0.00017276]
[1742430535222,0.0460649,86815.0,86813.0,0.0460649]
[1742430535421,0.3628,86817.0,86816.0,0.0921286]
[1742430535614,0.3638,86817.0,86816.0,1.5921286]
[1742430535820,0.4559275,86817.0,86816.0,1.5921286]
[1742430536221,0.4559275,86817.0,86816.0,1.7648286]
[1742430537020,0.4549275,86817.0,86816.0,1.7648286]
[1742430537327,0.0460617,86821.0,86820.0,0.0921243]
[1742430537529,0.0460611,86822.0,86821.0,0.0921212]
[1742430537828,0.0460611,86822.0,86821.0,0.2648212]
[1742430538124,0.4989867,86822.0,86821.0,0.2648212]
[1742430538518,0.1381867,86822.0,86821.0,0.1727]
[1742430538923,0.1381867,86822.0,86816.0,0.00064]
[1742430538924,0.0921275,86817.0,86816.0,0.00064]
[1742430539125,0.0490611,86822.0,86811.0,0.1779]
[1742430539126,0.0921328,86812.0,86811.0,0.1779]
[1742430539530,0.0921328,86812.0,86811.0,0.2700339]
[1742430539921,0.0921328,86812.0,86811.0,0.1779]
[1742430540121,0.0921328,86812.0,86811.0,0.2700339]
[1742430540433,0.4529328,86812.0,86811.0,0.2700339]
[1742430540625,0.4529328,86812.0,86811.0,0.1779]
[1742430540830,0.092136,86809.0,86808.0,0.09230986]
[1742430541233,0.092136,86809.0,86808.0,0.00017276]
[1742430541426,0.092136,86809.0,86808.0,0.09230986]
[1742430541632,0.092136,86809.0,86808.0,0.00017276]
[1742430542128,0.093136,86809.0,86808.0,0.17597276]
[1742430542523,0.093136,86809.0,86808.0,0.26810986]
[1742430543831,0.096136,86809.0,86808.0,0.26810986]
[1742430544033,0.097136,86809.0,86808.0,0.26810986]
[1742430544529,0.094136,86809.0,86808.0,0.26810986]
[1742430544835,0.096136,86809.0,86808.0,0.26810986]
[1742430545226,0.096136,86809.0,86808.0,0.17597276]
[1742430545432,0.096136,86809.0,86808.0,0.26810986]
[1742430546020,0.096136,86809.0,86808.0,0.00017276]
[1742430546226,0.217576,86809.0,86808.0,0.00017276]
[1742430548130,0.0921519,86794.0,86793.0,1.5921525]
[1742430548328,0.0921519,86794.0,86793.0,1.5]
[1742430548740,0.10403567,86794.0,86793.0,1.6781]
[1742430549039,0.27453567,86794.0,86793.0,1.6781]
[1742430549828,0.27353567,86794.0,86793.0,1.770253]
[1742430550837,0.27453567,86794.0,86793.0,1.770253]
[1742430551041,0.27653567,86794.0,86793.0,1.770253]
[1742430551939,0.27453567,86794.0,86793.0,1.770253]
[1742430552245,0.45953567,86794.0,86793.0,1.958353]
[1742430554245,0.28903567,86794.0,86793.0,1.958353]
[1742430554440,1e-07,86794.0,86793.0,2.058353]
[1742430554646,1e-07,86794.0,86793.0,2.068353]
[1742430556335,0.04624446,86802.0,86801.0,0.0921445]
[1742430556336,0.00017276,86802.0,86801.0,0.0921445]
[1742430556536,0.09231616,86802.0,86801.0,0.0921445]
[1742430556742,0.00017276,86802.0,86801.0,0.4476445]
[1742430557136,0.09231616,86802.0,86801.0,0.4476445]
[1742430557536,0.10406951,86802.0,86801.0,0.4476445]
[1742430558039,0.01192611,86802.0,86801.0,0.4476445]
[1742430558849,0.01192611,86802.0,86801.0,1.9476445]
[1742430559545,0.0460553,86833.0,86801.0,2.3084445]
[1742430559849,0.00064,86817.0,86815.0,0.0921297]
[1742430560039,0.0921272,86818.0,86815.0,0.0921297]
[1742430560246,0.0460624,86820.0,86811.0,0.3608]
[1742430560247,0.0460624,86820.0,86817.0,0.0460633]
[1742430560551,0.0921297,86816.0,86815.0,0.0921293]
[1742430560943,0.4512297,86816.0,86815.0,1.7700293]
[1742430561245,0.4512286,86816.0,86815.0,1.7700293]
[1742430561445,0.4542286,86816.0,86815.0,1.9440293]
[1742430561835,0.8150286,86816.0,86815.0,1.9440293]
[1742430562241,0.8170286,86816.0,86815.0,1.9440293]
[1742430562442,0.005,86816.0,86815.0,1.9440293]
[1742430562843,0.005,86816.0,86815.0,1.9540293]
[1742430564645,0.005,86816.0,86815.0,2.3148293]
[1742430565351,0.005,86816.0,86815.0,1.9540293]
[1742430566056,0.005,86816.0,86815.0,2.3148293]
[1742430566255,0.005,86816.0,86815.0,1.9540293]
[1742430567161,0.005,86816.0,86815.0,2.3148293]
[1742430567351,0.0971286,86816.0,86815.0,0.1779]
[1742430568156,0.2734286,86816.0,86815.0,0.1779]
[1742430568957,0.2734286,86816.0,86815.0,0.2700297]
[1742430569458,0.005,86816.0,86815.0,0.2700297]
[1742430570250,0.0971286,86816.0,86815.0,1.7800297]
[1742430570850,0.005,86816.0,86815.0,1.7800297]